fUSD/lending_fUSD_20240804
["ID","MTS","AMOUNT","RATE_DAILY","PERIOD"]
[334146430,1722793913422,-8055.55,0.00023506,9]
[334146431,1722793913431,-500.0,0.00023506,9]
[334146432,1722793913440,-500.0,0.00023506,9]
[334146433,1722793913451,-1680.09,0.00023506,9]
[334146434,1722793913461,-500.0,0.00023506,9]
[334146435,1722793913470,-552.75,0.00023506,9]
[334146436,1722793913480,-539.85,0.00023506,9]
[334146437,1722793913490,-530.04,0.00023506,9]
[334146438,1722793913499,-500.0,0.00023506,9]
[334146439,1722793913509,-702.68,0.00023506,9]
[334146440,1722793913519,-500.0,0.00023506,9]
[334146441,1722793913528,-1066.04,0.00023506,9]
[334146442,1722793913541,-591.76,0.00023506,9]
[334146443,1722793913550,-800.55,0.00023506,9]
[334146444,1722793913559,-500.0,0.00023506,9]
[334146445,1722793913568,-909.99,0.00023506,9]
[334146446,1722793913579,-306.512561,0.00023506,7]
[334146447,1722793913589,-500.0,0.00023506,9]
[334146448,1722793913599,-500.0,0.00023506,9]
[334146449,1722793913608,-500.0,0.00023506,9]
[334146450,1722793913619,-720.81,0.00023506,9]
[334146451,1722793913628,-500.0,0.00023506,9]
[334146452,1722793913638,-500.0,0.00023506,9]
[334146453,1722793913648,-500.0,0.00023506,9]
[334146454,1722793913657,-500.0,0.00023506,9]
[334146455,1722793913666,-1192.14,0.00023506,9]
[334146456,1722793913676,-500.0,0.00023506,9]
[334146457,1722793913685,-1148.81,0.00023506,9]
[334146458,1722793913695,-502.66,0.00023506,9]
[334146459,1722793913704,-820.9,0.00023506,9]
[334146460,1722793913714,-518.02,0.00023506,9]
[334146461,1722793913724,-3642.15,0.00023506,9]
[334146462,1722793913737,-946.55,0.00023506,9]
[334146463,1722793913747,-500.0,0.00023506,9]
[334146464,1722793913756,-500.0,0.00023506,9]
[334146465,1722793913765,-500.0,0.00023506,9]
[334146466,1722793913775,-528.95,0.00023506,9]
[334146467,1722793913787,-1603.91,0.00023506,9]
[334146468,1722793913797,-501.49392554,0.00023506,9]
[334146469,1722793913808,-500.0,0.00023506,9]
[334146470,1722793913818,-2125.37,0.00023506,9]
[334146471,1722793913828,-1805.42,0.00023506,9]
[334146472,1722793913838,-874.1,0.00023506,9]
[334146473,1722793913847,-829.66,0.00023506,9]
[334146474,1722793913857,-500.0,0.00023506,9]
[334146475,1722793913867,-1176.16,0.00023506,9]
[334146476,1722793913876,-500.0,0.00023506,9]
[334146477,1722793913887,-789.04,0.00023506,9]
[334146478,1722793913898,-500.0,0.00023506,9]
[334146479,1722793913909,-1150.29,0.00023506,9]
[334146480,1722793913919,-1178.44,0.00023506,9]
[334146481,1722793913929,-1074.2,0.00023506,9]
[334146482,1722793913939,-248.76704901,0.00023506,9]
[334146483,1722793913950,-500.0,0.00023506,9]
[334146484,1722793913959,-583.23,0.00023506,9]
[334146485,1722793913969,-2682.29,0.00023506,9]
[334146486,1722793913979,-986.96,0.00023506,9]
[334146487,1722793913990,-4128.36,0.00023506,9]
[334146488,1722793913999,-654.0,0.00023506,9]
[334146489,1722793914008,-625.66,0.00023506,9]
[334146490,1722793914019,-500.0,0.00023506,9]
[334146491,1722793914029,-572.4,0.00023506,9]
[334146492,1722793914045,-500.0,0.00023506,9]
[334146493,1722793914055,-663.93,0.00023506,9]
[334146494,1722793914064,-1047.34,0.00023506,9]
[334146495,1722793914074,-500.0,0.00023506,9]
[334146496,1722793914084,-500.0,0.00023506,9]
[334146497,1722793914094,-2555.28,0.00023506,9]
[334146498,1722793914103,-559.65,0.00023506,9]
[334146499,1722793914113,-1353.29,0.00023506,9]
[334146500,1722793914123,-620.84,0.00023506,9]
[334146501,1722793914133,-1467.96,0.00023506,9]
[334146502,1722793914144,-1214.04,0.00023506,9]
[334146503,1722793914154,-825.95,0.00023506,9]
[334146504,1722793914163,-500.0,0.00023506,9]
[334146505,1722793914173,-500.0,0.00023506,9]
[334146506,1722793914183,-793.93,0.00023506,9]
[334146507,1722793914194,-500.0,0.00023506,9]
[334146508,1722793914204,-500.0,0.00023506,9]
[334146509,1722793914214,-500.0,0.00023506,9]
[334146510,1722793914224,-500.0,0.00023506,9]
[334146511,1722793914234,-500.0,0.00023506,9]
[334146512,1722793914243,-1434.28,0.00023506,9]
[334146513,1722793914253,-1102.08,0.00023506,9]
[334146514,1722793914262,-500.0,0.00023506,9]
[334146515,1722793914272,-830.67,0.00023506,9]
[334146516,1722793914284,-837.82,0.00023506,9]
[334146517,1722793914293,-771.44,0.00023506,9]
[334146518,1722793914303,-1054.27,0.00023506,9]
[334146519,1722793914312,-703.02,0.00023506,9]
[334146520,1722793914322,-1468.65,0.00023506,9]
[334146521,1722793914331,-592.73,0.00023506,9]
[334146522,1722793914341,-500.0,0.00023506,9]
[334146523,1722793914350,-1140.89,0.00023506,9]
[334146524,1722793914359,-25.06909673,0.00023506,9]
[334146525,1722793914375,-474.93090327,0.00023506,9]
[334146526,1722793914384,-245.08159673,0.00023506,9]
[334146527,1722793914630,-163.99,0.0001655,2]
[334146528,1722793914640,-93.77083551,0.00016994,2]
[334146529,1722793914651,-70.21916449,0.00016994,2]
[334146530,1722793914660,-163.99,0.00017249,2]
[334146531,1722793914669,-253.90374581,0.00023013,7]
[334146532,1722793914680,-1439.9975,0.00023013,7]
[334146533,1722793914691,-1060.0,0.00023013,7]
[334146534,1722793914702,-715.05493219,0.00023013,7]
[334146535,1722793914712,-501.63936129,0.00023178,9]
[334146536,1722793914721,-254.91840327,0.00023506,9]
[334146537,1722793914731,-268.38296325,0.00023506,9]
[334146538,1722793914760,-163.99,0.0001905,2]
[334146539,1722793914770,-2713.76,0.00023095,7]
[334146540,1722793914784,-755.196178,0.00023095,7]
[334146541,1722793914794,-89.5855598,0.00023506,9]
[334146542,1722793914806,-278.285,0.00023506,9]
[334146543,1722793914860,20379.93085183,9.226e-05,2]
[334146544,1722793914876,-163.99,0.00020437,2]
[334146545,1722793914885,-237.85899786,0.00023013,9]
[334146546,1722793914896,-262.14100214,0.00023013,9]
[334146547,1722793914905,-82.57539786,0.00023506,9]
[334146548,1722793914916,-1438.18107909,0.00023506,9]
[334146549,1722793914926,-825.81123653,0.00023506,9]
[334146550,1722793914954,-691.69876347,0.00023506,9]
[334146551,1722793914964,-874.07560269,0.00023506,9]
[334146552,1722793914975,-98.34439731,0.00023506,9]
[334146553,1722793914985,-1516.1,0.00023506,9]
[334146554,1722793914995,-500.0,0.00023506,9]
[334146555,1722793915004,-500.0,0.00023506,9]
[334146556,1722793915014,-118.93595622,0.00023506,9]
[334146557,1722794006952,500.0,0.00026453,120]
[334146562,1722794025772,200.0,0.00026667,120]
[334146571,1722794061927,368.83,0.00026139,120]
[334146592,1722794584774,174.89,0.00025973,120]
[334146593,1722794602341,500.0,0.00026729,120]
[334146594,1722794614902,200.0,0.00026945,120]
[334146600,1722794992797,-550.0,0.00011,2]
[334146601,1722794992837,-521.9105533,0.00011105,2]
[334146602,1722794992878,-1106.80196104,0.00011105,2]
[334146645,1722795031778,-464.79262043,0.00011105,2]
[334146646,1722795031790,-2531.45759744,0.00011105,2]
[334146647,1722795031800,-2500.85158559,0.00012,2]
[334146648,1722795031810,-600.0,0.00013,2]
[334146649,1722795031819,-150.0,0.00013899,2]
[334146650,1722795031829,-13116.41087997,0.000139,2]
[334146651,1722795031840,-44104.31230903,0.000139,2]
[334146652,1722795031850,-174.54,0.00013973,2]
[334146653,1722795031860,-286.64,0.00013973,2]
[334146654,1722795031870,-2567.0,0.00015,2]
[334146655,1722795031879,-255.0,0.00015025,2]
[334146656,1722795031889,-150.0,0.00016248,2]
[334146657,1722795031898,-150.99,0.00016571,2]
[334146658,1722795031911,-66757.5103871,0.00016571,2]
[334146659,1722795031925,-124122.0,0.00016581,7]
[334146660,1722795031934,-2935.90109735,0.00016581,7]
[334146661,1722795031944,-457.47269772,0.00016581,7]
[334146662,1722795031954,-633.99,0.000169,2]
[334146663,1722795031967,-964.4,0.000169,2]
[334146664,1722795031977,-300.0,0.000169,6]
[334146665,1722795031987,-214.62,0.00018998,2]
[334146666,1722795031997,-999.99,0.00019451,2]
[334146667,1722795032011,-3340.88,0.00019451,2]
[334146668,1722795032021,-499.99,0.00019451,2]
[334146669,1722795032031,-991.35,0.00019495,2]
[334146670,1722795032041,-2100.0,0.0002,2]
[334146671,1722795032051,-155.0,0.00020109,2]
[334146672,1722795032060,-286.64,0.00020447,2]
[334146674,1722795032070,-9536.78719816,0.0002049,3]
[334146676,1722795032079,-1763.29355487,0.000205,2]
[334146678,1722795032089,-174.89,0.00020779,2]
[334146680,1722795032102,-250.0,0.00020779,2]
[334146681,1722795032112,-155.12513737,0.00020899,2]
[334146682,1722795032121,-368.83,0.00020911,2]
[334146683,1722795032131,-311.97,0.00021025,2]
[334146684,1722795032142,-214.62,0.00021262,2]
[334146685,1722795032151,-150.0,0.00021483,2]
[334146686,1722795032161,-150.392,0.00021483,2]
[334146687,1722795032171,-1345.08973932,0.00021525,5]
[334146688,1722795032180,-169.57,0.00021589,30]
[334146689,1722795032189,-152.0,0.0002197,3]
[334146690,1722795032198,-500.0,0.00022082,2]
[334146691,1722795032208,-472.0142,0.00022089,2]
[334146692,1722795032218,-352.7379,0.00022464,2]
[334146693,1722795032228,-621.0,0.00022565,2]
[334146694,1722795032238,-1552.0,0.00022565,2]
[334146695,1722795032247,-2253.0,0.000226,5]
[334146696,1722795032257,-223.10827121,0.00022683,2]
[334146697,1722795032266,-600.0,0.000227,8]
[334146698,1722795032275,-104904.65918,0.00022773,3]
[334146699,1722795032285,-153.52,0.00022773,2]
[334146700,1722795032296,-201847.0,0.00022783,2]
[334146701,1722795032305,-900.0,0.000228,8]
[334146702,1722795032314,-500.0,0.00022813,2]
[334146703,1722795032323,-1000.0,0.00022813,2]
[334146704,1722795032333,-1200.0,0.000229,8]
[334146705,1722795032343,-38147.1487926,0.00022903,3]
[334146706,1722795032353,-1577.79466648,0.00022912,21]
[334146707,1722795032362,-710.0368,0.00022913,2]
[334146708,1722795032372,-14346.0,0.00022913,2]
[334146709,1722795032381,-6243.1572,0.00022913,2]
[334146710,1722795032391,-10536.2923,0.00022913,2]
[334146711,1722795032400,-22706.515,0.00022913,2]
[334146712,1722795032410,-40305.0584,0.00022913,2]
[334146713,1722795032419,-7500.0,0.00022913,2]
[334146714,1722795032428,-172.59879281,0.00022913,2]
[334146715,1722795032438,-4000.0,0.00022998,3]
[334146716,1722795032448,-1477.13603452,0.00023,2]
[334146717,1722795032458,-1000.0,0.00023,9]
[334146718,1722795032469,-153212.47103373,0.00023,2]
[334146719,1722795032481,-3496.8305346,0.00023,2]
[334146720,1722795032498,-28992.38500001,0.00023,2]
[334146721,1722795032509,-10260.88565433,0.00023,2]
[334146722,1722795032538,-3362.75272377,0.00023,2]
[334146723,1722795032549,-3044.45219306,0.00023,2]
[334146755,1722795037556,-201.547,0.00021238,2]
[334146758,1722795037566,-55358.99380571,0.00023,2]
[334146792,1722795037803,-59525.77504481,0.00023,2]
[334146793,1722795037987,-4155.99883832,0.00023,2]
[334146794,1722795037999,-1240.2461345,0.00023,2]
[334146795,1722795038011,-3347.23544621,0.00023,2]
[334146796,1722795038204,-3663.9822,0.00023,2]
[334146797,1722795038216,-659.0,0.00023,2]
[334146821,1722795040055,-15060.20244085,0.00023,2]
[334146822,1722795040067,-865.0,0.00023,2]
[334146823,1722795040079,-1596.3,0.00023,2]
[334146824,1722795040091,-9296.24118625,0.00023,2]
[334146825,1722795040129,-367.06608472,0.00023,2]
[334146826,1722795040142,-5370.50150946,0.00023,2]
[334146827,1722795040154,-1634.18056892,0.00023,2]
[334146828,1722795040218,-196.93669502,0.00020999,2]
[334146829,1722795040228,-33287.31330498,0.00023,2]
[334146849,1722795042573,-1516.6,0.00023,2]
[334146851,1722795042586,-11316.48049096,0.00023,2]
[334146853,1722795042597,-6679.72932,0.00023,2]
[334146856,1722795042609,-13346.73340001,0.00023,2]
[334146858,1722795042621,-1661.60734328,0.00023,2]
[334146860,1722795042633,-657.15745888,0.00023,2]
[334146862,1722795042668,-404.8565301,0.00023,2]
[334146864,1722795042680,-7764.0017081,0.00023,2]
[334146868,1722795042706,-38710.46975587,0.00023,2]
[334146870,1722795042718,-126677.33008704,0.00023,2]
[334146877,1722795042795,-661.3131406,0.00023,2]
[334146879,1722795042807,-96855.73567803,0.00023,2]
[334146880,1722795042817,-369.16735973,0.00023012,2]
[334146883,1722795042826,-500.0,0.00023013,9]
[334146884,1722795042836,-500.0,0.00023013,9]
[334146885,1722795042846,-500.0,0.00023013,9]
[334146887,1722795042855,-500.0,0.00023013,9]
[334146889,1722795042866,-500.0,0.00023013,9]
[334146890,1722795042875,-500.0,0.00023013,9]
[334146891,1722795042886,-500.0,0.00023013,9]
[334146892,1722795042896,-500.0,0.00023013,9]
[334146893,1722795042905,-500.0,0.00023013,9]
[334146894,1722795042915,-500.0,0.00023013,9]
[334146895,1722795042925,-500.0,0.00023013,9]
[334146896,1722795042934,-500.0,0.00023013,9]
[334146897,1722795042944,-500.0,0.00023013,9]
[334146898,1722795042954,-500.0,0.00023013,9]
[334146899,1722795042964,-500.0,0.00023013,9]
[334146900,1722795042974,-500.0,0.00023013,9]
[334146901,1722795042983,-500.0,0.00023013,9]
[334146902,1722795042993,-500.0,0.00023013,9]
[334146903,1722795043003,-500.0,0.00023013,9]
[334146904,1722795043013,-591.72757538,0.00023013,9]
[334146905,1722795043023,-500.0,0.00023013,9]
[334146906,1722795043033,-500.0,0.00023013,9]
[334146907,1722795043044,-500.0,0.00023013,9]
[334146908,1722795043054,-500.0,0.00023013,9]
[334146909,1722795043063,-220.89885307,0.00023013,9]
[334146910,1722795043073,-558.83,0.00023013,9]
[334146911,1722795043082,-500.0,0.00023013,9]
[334146912,1722795043092,-500.0,0.00023013,9]
[334146913,1722795043103,-500.0,0.00023013,9]
[334146914,1722795043117,-500.0,0.00023013,9]
[334146915,1722795043126,-500.0,0.00023013,9]
[334146916,1722795043137,-500.0,0.00023013,9]
[334146917,1722795043146,-500.0,0.00023013,9]
[334146918,1722795043156,-500.0,0.00023013,9]
[334146919,1722795043166,-500.0,0.00023013,9]
[334146920,1722795043175,-500.0,0.00023013,9]
[334146921,1722795043186,-500.0,0.00023013,9]
[334146922,1722795043195,-287.6,0.00023013,9]
[334146923,1722795043205,-296.35,0.00023013,9]
[334146924,1722795043214,-500.0,0.00023013,9]
[334146925,1722795043224,-500.0,0.00023013,9]
[334146926,1722795043234,-500.0,0.00023013,9]
[334146927,1722795043244,-500.0,0.00023013,9]
[334146928,1722795043254,-500.0,0.00023013,9]
[334146929,1722795043264,-500.0,0.00023013,9]
[334146930,1722795043279,-500.0,0.00023013,9]
[334146932,1722795043289,-500.0,0.00023013,9]
[334146934,1722795043304,-287.83707887,0.00023013,9]
[334146936,1722795043315,-500.0,0.00023013,9]
[334146938,1722795043324,-500.0,0.00023013,9]
[334146940,1722795043335,-500.0,0.00023013,9]
[334146942,1722795043344,-500.0,0.00023013,9]
[334146944,1722795043354,-500.0,0.00023013,9]
[334146946,1722795043363,-405.2,0.00023013,9]
[334146947,1722795043373,-500.0,0.00023013,9]
[334146949,1722795043383,-500.0,0.00023013,9]
[334146951,1722795043394,-231.76,0.00023013,9]
[334146954,1722795043403,-500.0,0.00023013,9]
[334146957,1722795043413,-500.0,0.00023013,9]
[334146960,1722795043423,-500.0,0.00023013,9]
[334146963,1722795043433,-492.68,0.00023013,9]
[334146966,1722795043442,-500.0,0.00023013,9]
[334146969,1722795043452,-500.0,0.00023013,9]
[334146972,1722795043462,-500.0,0.00023013,9]
[334146975,1722795043472,-500.0,0.00023013,9]
[334146977,1722795043482,-500.0,0.00023013,9]
[334146979,1722795043492,-500.0,0.00023013,9]
[334146985,1722795043561,-500.0,0.00023013,9]
[334146986,1722795043571,-500.0,0.00023013,9]
[334146987,1722795043582,-500.0,0.00023013,9]
[334146988,1722795043592,-500.0,0.00023013,9]
[334146989,1722795043602,-500.0,0.00023013,9]
[334146990,1722795043612,-500.0,0.00023013,9]
[334146991,1722795043623,-554.8,0.00023013,9]
[334146992,1722795043634,-500.0,0.00023013,9]
[334146993,1722795043644,-500.0,0.00023013,9]
[334146994,1722795043654,-500.0,0.00023013,9]
[334146995,1722795043664,-500.0,0.00023013,9]
[334146996,1722795043674,-156.36,0.00023013,9]
[334146998,1722795043684,-500.0,0.00023013,9]
[334147000,1722795043694,-500.0,0.00023013,9]
[334147002,1722795043703,-500.0,0.00023013,9]
[334147004,1722795043713,-263.19,0.00023013,9]
[334147006,1722795043723,-500.0,0.00023013,9]
[334147008,1722795043734,-547.19,0.00023013,9]
[334147010,1722795043744,-500.0,0.00023013,9]
[334147012,1722795043754,-500.0,0.00023013,9]
[334147014,1722795043764,-500.0,0.00023013,9]
[334147016,1722795043783,-500.0,0.00023013,9]
[334147018,1722795043794,-396.31,0.00023013,9]
[334147020,1722795043803,-500.0,0.00023013,9]
[334147021,1722795043813,-500.0,0.00023013,9]
[334147023,1722795043823,-308.39249307,0.00023013,9]
[334147025,1722795043832,-500.0,0.00023013,9]
[334147027,1722795043842,-500.0,0.00023013,9]
[334147029,1722795043851,-500.0,0.00023013,9]
[334147031,1722795043861,-500.0,0.00023013,9]
[334147033,1722795043870,-500.0,0.00023013,9]
[334147035,1722795043880,-500.0,0.00023013,9]
[334147037,1722795043890,-500.0,0.00023013,9]
[334147039,1722795043900,-500.0,0.00023013,9]
[334147041,1722795043910,-500.0,0.00023013,9]
[334147043,1722795043920,-500.0,0.00023013,9]
[334147045,1722795043929,-500.0,0.00023013,9]
[334147047,1722795043938,-907.39,0.00023013,9]
[334147048,1722795043948,-500.0,0.00023013,9]
[334147050,1722795043957,-500.0,0.00023013,9]
[334147052,1722795043967,-500.0,0.00023013,9]
[334147054,1722795043977,-500.0,0.00023013,9]
[334147056,1722795043986,-500.0,0.00023013,9]
[334147058,1722795043996,-500.0,0.00023013,9]
[334147060,1722795044006,-500.0,0.00023013,9]
[334147062,1722795044016,-500.0,0.00023013,9]
[334147064,1722795044037,-500.0,0.00023013,9]
[334147066,1722795044047,-500.0,0.00023013,9]
[334147068,1722795044056,-500.0,0.00023013,9]
[334147070,1722795044066,-500.0,0.00023013,9]
[334147072,1722795044075,-500.0,0.00023013,9]
[334147074,1722795044086,-500.0,0.00023013,9]
[334147076,1722795044097,-500.0,0.00023013,9]
[334147078,1722795044109,-546.75,0.00023013,9]
[334147080,1722795044118,-663.99,0.00023013,9]
[334147082,1722795044127,-500.0,0.00023013,9]
[334147083,1722795044137,-500.0,0.00023013,9]
[334147085,1722795044146,-500.0,0.00023013,9]
[334147087,1722795044156,-500.0,0.00023013,9]
[334147089,1722795044165,-1306.39,0.00023013,9]
[334147091,1722795044174,-500.0,0.00023013,9]
[334147093,1722795044183,-516.58,0.00023013,9]
[334147095,1722795044194,-297.13,0.00023013,9]
[334147096,1722795044203,-251.49,0.00023013,9]
[334147098,1722795044212,-809.19,0.00023013,9]
[334147100,1722795044222,-500.0,0.00023013,9]
[334147102,1722795044232,-500.0,0.00023013,9]
[334147104,1722795044241,-500.0,0.00023013,9]
[334147106,1722795044251,-501.08,0.00023013,9]
[334147108,1722795044260,-591.34,0.00023013,9]
[334147110,1722795044269,-616.87,0.00023013,9]
[334147112,1722795044279,-616.87,0.00023013,9]
[334147114,1722795044288,-500.0,0.00023013,9]
[334147116,1722795044297,-500.0,0.00023013,9]
[334147118,1722795044306,-500.0,0.00023013,9]
[334147120,1722795044314,-500.0,0.00023013,9]
[334147121,1722795044323,-531.99,0.00023013,9]
[334147123,1722795044333,-500.0,0.00023013,9]
[334147125,1722795044342,-500.0,0.00023013,9]
[334147127,1722795044352,-500.0,0.00023013,9]
[334147129,1722795044361,-500.0,0.00023013,9]
[334147131,1722795044371,-500.0,0.00023013,9]
[334147133,1722795044380,-500.0,0.00023013,9]
[334147135,1722795044389,-500.0,0.00023013,9]
[334147137,1722795044398,-763.04,0.00023013,9]
[334147139,1722795044407,-500.0,0.00023013,9]
[334147141,1722795044417,-500.0,0.00023013,9]
[334147143,1722795044427,-500.0,0.00023013,9]
[334147145,1722795044436,-500.0,0.00023013,9]
[334147147,1722795044446,-500.0,0.00023013,9]
[334147149,1722795044456,-500.0,0.00023013,9]
[334147151,1722795044465,-500.0,0.00023013,9]
[334147153,1722795044475,-665.84,0.00023013,9]
[334147155,1722795044485,-500.0,0.00023013,9]
[334147157,1722795044494,-500.0,0.00023013,9]
[334147159,1722795044503,-532.72,0.00023013,9]
[334147161,1722795044513,-370.81,0.00023013,9]
[334147163,1722795044532,-500.0,0.00023013,9]
[334147165,1722795044541,-500.0,0.00023013,9]
[334147167,1722795044552,-500.0,0.00023013,9]
[334147169,1722795044563,-500.0,0.00023013,9]
[334147171,1722795044572,-500.0,0.00023013,9]
[334147173,1722795044582,-500.0,0.00023013,9]
[334147175,1722795044592,-500.0,0.00023013,9]
[334147177,1722795044602,-622.56639142,0.00023013,9]
[334147179,1722795044611,-500.0,0.00023013,9]
[334147181,1722795044621,-500.0,0.00023013,9]
[334147183,1722795044630,-241.26427841,0.00023013,9]
[334147185,1722795044640,-500.0,0.00023013,9]
[334147187,1722795044649,-500.0,0.00023013,9]
[334147189,1722795044659,-557.06490633,0.00023013,9]
[334147191,1722795044669,-589.72,0.00023013,9]
[334147193,1722795044678,-500.0,0.00023013,9]
[334147194,1722795044687,-500.0,0.00023013,9]
[334147196,1722795044697,-500.0,0.00023013,9]
[334147198,1722795044706,-500.0,0.00023013,9]
[334147200,1722795044716,-500.0,0.00023013,9]
[334147202,1722795044725,-159.5263688,0.00023013,9]
[334147204,1722795044735,-500.0,0.00023013,9]
[334147206,1722795044744,-500.0,0.00023013,9]
[334147208,1722795044754,-602.45,0.00023013,9]
[334147210,1722795044763,-200.0,0.00023013,7]
[334147212,1722795044782,-500.0,0.00023013,9]
[334147214,1722795044792,-500.0,0.00023013,9]
[334147216,1722795044802,-500.0,0.00023013,9]
[334147218,1722795044811,-519.29002688,0.00023013,9]
[334147220,1722795044822,-500.0,0.00023013,9]
[334147222,1722795044832,-500.0,0.00023013,9]
[334147224,1722795044841,-500.0,0.00023013,9]
[334147226,1722795044850,-500.0,0.00023013,9]
[334147228,1722795044860,-500.0,0.00023013,9]
[334147230,1722795044870,-500.0,0.00023013,9]
[334147232,1722795044880,-592.5,0.00023013,9]
[334147234,1722795044890,-500.0,0.00023013,9]
[334147236,1722795044899,-500.0,0.00023013,9]
[334147238,1722795044909,-500.0,0.00023013,9]
[334147240,1722795044918,-500.0,0.00023013,9]
[334147242,1722795044927,-221.75453999,0.00023013,9]
[334147244,1722795044936,-500.0,0.00023013,9]
[334147246,1722795044947,-500.0,0.00023013,9]
[334147248,1722795044956,-500.0,0.00023013,9]
[334147250,1722795044966,-212.57,0.00023013,9]
[334147252,1722795044974,-500.0,0.00023013,9]
[334147254,1722795044984,-547.19,0.00023013,9]
[334147256,1722795044993,-500.0,0.00023013,9]
[334147258,1722795045003,-500.0,0.00023013,9]
[334147260,1722795045013,-625.23,0.00023013,9]
[334147262,1722795045033,-500.0,0.00023013,9]
[334147264,1722795045043,-500.0,0.00023013,9]
[334147266,1722795045052,-500.0,0.00023013,9]
[334147268,1722795045061,-655.71,0.00023013,9]
[334147270,1722795045070,-738.47,0.00023013,9]
[334147272,1722795045080,-500.0,0.00023013,9]
[334147274,1722795045089,-500.0,0.00023013,9]
[334147276,1722795045099,-500.0,0.00023013,9]
[334147278,1722795045109,-500.0,0.00023013,9]
[334147280,1722795045120,-591.28,0.00023013,9]
[334147282,1722795045128,-500.0,0.00023013,9]
[334147284,1722795045138,-500.0,0.00023013,9]
[334147286,1722795045147,-619.46,0.00023013,9]
[334147288,1722795045156,-500.0,0.00023013,9]
[334147290,1722795045165,-554.01,0.00023013,9]
[334147292,1722795045174,-500.0,0.00023013,9]
[334147294,1722795045186,-500.0,0.00023013,9]
[334147296,1722795045196,-500.0,0.00023013,9]
[334147298,1722795045206,-500.0,0.00023013,9]
[334147300,1722795045215,-535.98,0.00023013,9]
[334147302,1722795045224,-500.0,0.00023013,9]
[334147304,1722795045234,-500.0,0.00023013,9]
[334147306,1722795045243,-500.0,0.00023013,9]
[334147308,1722795045253,-500.0,0.00023013,9]
[334147310,1722795045262,-633.91,0.00023013,9]
[334147312,1722795045277,-500.0,0.00023013,9]
[334147314,1722795045288,-500.0,0.00023013,9]
[334147316,1722795045297,-500.0,0.00023013,9]
[334147318,1722795045307,-500.0,0.00023013,9]
[334147320,1722795045316,-500.0,0.00023013,9]
[334147322,1722795045325,-500.0,0.00023013,9]
[334147324,1722795045334,-173.01,0.00023013,9]
[334147326,1722795045343,-500.0,0.00023013,9]
[334147328,1722795045352,-500.0,0.00023013,9]
[334147330,1722795045362,-500.0,0.00023013,9]
[334147332,1722795045371,-500.0,0.00023013,9]
[334147334,1722795045380,-500.0,0.00023013,9]
[334147336,1722795045390,-500.0,0.00023013,9]
[334147338,1722795045399,-500.0,0.00023013,9]
[334147340,1722795045409,-500.0,0.00023013,9]
[334147342,1722795045418,-500.0,0.00023013,9]
[334147344,1722795045427,-500.0,0.00023013,9]
[334147346,1722795045437,-500.0,0.00023013,9]
[334147348,1722795045447,-577.4,0.00023013,9]
[334147350,1722795045457,-578.58,0.00023013,9]